Cogmind - Beta 16.1 @@@ ROGUE MODE // 2026.02.20 @ 13:16:13 Player: Kaisercar Result: Self-destructed Performance ------------- Evolutions (6) 3000 Regions Visited (11) 2200 Robots Destroyed (106) 530 Value Destroyed (3957) 3957 Prototype IDs (30) 600 Alien Tech Used (0) 0 Bonus (1308) 1308 TOTAL SCORE: 11595 Bonus ------- High Alert Combat Kills 171 Follower Combat Kills 172 Entered Garrisons 200 Entered DSFs 500 Aligned with FarCom 300 Friendly Fire -35 Cogmind --------- Core Integrity 1109/1150 Matter 120/300 Energy 525/525 System Corruption 0% Temperature Cool (0) Movement Hovering (118) Ox1 Location -4/Factory Parts ------- > --- POWER (2) -------- Enhanced Nuclear Core Reinforced Antimatter Reactor > --- PROPULSION (5) --- Antigrav System Gyrokinetic Inverter Combat Gravmag System > --- UTILITY (9) ------ Medium Storage Unit Machine Analyzer Improved Terrain Scanner Advanced Terrain Scan Processor Phase Shifter Improved Utility Shielding Hacking Suite Hacking Suite System Shield > --- WEAPON (3) ------- Advanced Plasma Cannon Enhanced Gauss Cannon Longsword +1 > --- INVENTORY (10) --- Neutrino Core Advanced Power Amplifier Advanced Heat Sink Advanced Cooling System Compact Battery (200) Experimental Sensor Array Advanced Signal Interpreter Advanced ECM Suite Improved Grenade Launcher Improved Plasma Cutter Peak State ------------ > --- POWER ------------ Enhanced Nuclear Core Reinforced Antimatter Reactor > --- PROPULSION ------- Aerolev Unit Antigrav System Antigrav System Gyrokinetic Inverter Combat Gravmag System > --- UTILITY ---------- Medium Storage Unit Machine Analyzer Improved Terrain Scanner Advanced Terrain Scan Processor Phase Shifter Improved Utility Shielding Hacking Suite Hacking Suite System Shield > --- WEAPON ----------- Advanced Plasma Cannon Enhanced Gauss Cannon Longsword +1 > --- INVENTORY -------- Neutrino Core Advanced Power Amplifier Advanced Heat Sink Advanced Cooling System Compact Battery Experimental Sensor Array Advanced Signal Interpreter Advanced ECM Suite Improved Grenade Launcher Improved Plasma Cutter [Rating: 93] Favorites ----------- Power Ion Engine Engine Ion Engine Power Core Enhanced Nuclear Core Reactor Reinforced Antimatter Reactor Propulsion Light Treads Treads Light Treads Leg Titanium Leg Hover Unit Aerolev Unit Utility High-capacity Storage Unit Device Shield Generator Storage High-capacity Storage Unit Processor Advanced Terrain Scan Processor Hackware Hacking Suite Protection Hardened Medium Armor Plating Weapon Shotgun Energy Gun EM Pulse Gun Energy Cannon Heavy Plasma Cannon Ballistic Gun Shotgun Ballistic Cannon Enhanced Gauss Cannon Launcher Improved Grenade Launcher Slashing Weapon Longsword +1 Build | -11 -10 -10 -10 -9 -8 -7 -7 -6 -6 -5 -4 ------- Run | Yrd Mat Min Exi Min Mat Fac DSF Fac Gar Fac Fac Slots Evolved 12 | . . . . . 4 2 . 2 . 2 2 Power 1 | . . . . . . . . . . . 1 Propulsion 3 | . . . . . 1 1 . 1 . . . Utility 7 | . . . . . 2 1 . 1 . 2 1 Weapon 1 | . . . . . 1 . . . . . . Parts Attached 97 | 8 6 3 . 2 33 2 6 10 9 16 2 Power 9 | 1 2 . . . 2 1 . 1 . 2 . Engine 6 | 1 2 . . . 2 . . 1 . . . Core 2 | . . . . . . 1 . . . 1 . Reactor 1 | . . . . . . . . . . 1 . Propulsion 28 | 2 1 . . . 12 1 1 4 1 5 1 Treads 7 | 2 1 . . . 4 . . . . . . Leg 4 | . . . . . 4 . . . . . . Wheel . | . . . . . . . . . . . . Hover 17 | . . . . . 4 1 1 4 1 5 1 Flight . | . . . . . . . . . . . . Utility 32 | 2 1 2 . . 11 . 1 4 6 4 1 Device 14 | 1 . 2 . . 3 . . 3 3 2 . Storage 4 | 1 1 . . . 1 . . . 1 . . Processor 3 | . . . . . 1 . 1 . . 1 . Hackware 3 | . . . . . . . . . 2 . 1 Protection 8 | . . . . . 6 . . 1 . 1 . Artifact . | . . . . . . . . . . . . Weapon 28 | 3 2 1 . 2 8 . 4 1 2 5 . Energy Gun 1 | 1 . . . . . . . . . . . Energy Cannon 8 | . . . . 1 3 . 2 1 . 1 . Ballistic Gun 11 | 2 2 . . 1 3 . . . 1 2 . Ballistic Cannon 3 | . . . . . . . 1 . . 2 . Launcher 4 | . . 1 . . 1 . 1 . 1 . . Special Weapon . | . . . . . . . . . . . . Impact Weapon . | . . . . . . . . . . . . Slashing Weapon 1 | . . . . . 1 . . . . . . Piercing Weapon . | . . . . . . . . . . . . Special Melee Weapon . | . . . . . . . . . . . . Unidentified Prototypes 7 | . . 1 . . 3 1 . 1 1 . . Parts Lost 14 | . . . . 1 2 . 1 . 6 2 2 Power . | . . . . . . . . . . . . Propulsion 8 | . . . . . . . 1 . 3 2 2 Utility 3 | . . . . . 1 . . . 2 . . Weapon 3 | . . . . 1 1 . . . 1 . . Highest Loss Streak 4 | . . . . 1 1 . 1 . 4 1 1 To Critical Strikes . | . . . . . . . . . . . . Average Backups 15 | 4 10 20 19 19 19 9 10 9 9 9 9 Power 1 | . . 1 1 2 1 . 1 1 1 1 1 Propulsion 1 | 2 2 2 2 2 3 1 . . . . . Utility 6 | . 4 8 8 8 7 4 4 4 5 5 6 Weapon 5 | . 3 8 7 7 6 3 4 4 2 2 1 Tool/Special . | . . . . . . . . . . . . Unused Backups 51 | . 5 3 4 . 25 . 3 3 . 3 5 Power 4 | . . . . . 2 . 1 1 . . . Propulsion 13 | . 4 . . . 8 . . 1 . . . Utility 20 | . . 1 3 . 8 . 1 1 . 2 4 Weapon 13 | . 1 2 1 . 7 . 1 . . 1 . Tool/Special 1 | . . . . . . . . . . . 1 Average Slot Usage (%) 98 | . 100 100 100 99 99 94 100 94 94 94 92 Engine 9 | . 14 14 14 14 9 2 . 4 6 . . Treads 15 | . 28 28 28 28 9 . . . . . . Leg 2 | . . . . . 15 . . . . . . Hover 9 | . . . . . 1 30 30 27 28 25 21 Device 12 | . 14 14 14 14 13 9 10 12 6 9 10 Storage 10 | . 14 14 14 14 8 7 7 6 6 5 5 Processor 4 | . . . . . . 7 11 13 13 15 10 Hackware 2 | . . . . . . . . . 8 11 13 Protection 4 | . . . . . 13 7 7 6 3 2 5 Energy Cannon 3 | . . . . . 10 . 4 8 8 1 5 Ballistic Gun 17 | . 28 27 28 27 13 15 11 5 2 3 . Slashing Weapon 2 | . . . . . 3 7 1 4 4 4 5 Peak Build Rating 93 | 7 11 19 14 14 39 50 53 68 70 86 93 Average Rating 31 | 5 9 12 13 13 28 47 47 60 62 76 86 On Entrance 33 | . 7 11 13 14 14 38 50 50 67 58 78 Avg Prop Armor Cover (%) 4 | . . . . . . . . . . 4 . Naked Turns . | . . . . . . . . . . . . Heaviest Build 70 | 12 52 53 53 53 70 40 50 57 56 59 67 Greatest Support 60 | 40 40 40 40 40 60 35 35 46 52 56 59 Greatest Overweight (x) 3 | . 1 1 1 1 3 1 1 1 1 1 1 Average Overweight (x) . | . . 1 1 1 . . 1 1 . . 1 Largest Inventory Capacity 20 | 8 20 20 20 20 20 10 10 10 10 10 10 Average Capacity 15 | 7 14 20 20 20 19 10 10 10 10 10 10 Most Carried 20 | 5 20 20 20 20 20 10 10 10 10 10 10 Average Carried 15 | 4 10 19 19 19 19 9 9 9 9 9 9 Final Capacity 20 | 8 20 20 20 20 10 10 10 10 10 10 10 Final Carried 20 | 5 20 20 20 20 10 10 10 10 9 9 10 Class Distribution -------------------- 64% | Mutant 9% | Tank 6% | Skirmisher 5% | Hacker-Assassin 4% | Hacker-Mutant 3% | Assassin Dominant Class ---------------- Mutant | -10/Materials Mutant | -10/Mines Mutant | -10/Exiles Mutant | -9/Mines Tank | -8/Materials Mutant | -7/Factory Skirmisher | -7/DSF Assassin | -6/Factory Mutant | -6/Garrison Hacker-Assassin | -5/Factory Hacker-Assassin | -4/Factory Resources | -11 -10 -10 -10 -9 -8 -7 -7 -6 -6 -5 -4 ----------- Run | Yrd Mat Min Exi Min Mat Fac DSF Fac Gar Fac Fac Matter Collected 3400 | 346 522 487 20 89 737 . 268 208 212 511 . Remotely . | . . . . . . . . . . . . Salvage Created 4883 | 154 664 205 . 74 951 . 360 433 1456 586 . Parts 205 | 8 29 13 . 3 48 . 21 15 44 24 . Haulers Intercepted 6 | . 2 . . . 3 . . 1 . . . Recyclers Shooed 3 | 1 1 . . . . . . . . 1 . Parts Field Recycled . | . . . . . . . . . . . . Retrieved Matter . | . . . . . . . . . . . . Parts Self-Destructed . | . . . . . . . . . . . . Prevented . | . . . . . . . . . . . . Parts Restored . | . . . . . . . . . . . . Kills | -11 -10 -10 -10 -9 -8 -7 -7 -6 -6 -5 -4 ------- Run | Yrd Mat Min Exi Min Mat Fac DSF Fac Gar Fac Fac Combat Hostiles Destroyed 66 | . 9 8 . 2 12 . 9 2 20 4 . Guns 29 | . 9 7 . 2 7 . 1 . 3 . . Cannons 20 | . . . . . 5 . 5 1 5 4 . AOE 12 | . . 1 . . . . 3 . 8 . . Classes Destroyed 15 | 2 5 1 . . 2 . 3 2 . . . Worker 5 | . . . . . . . . 1 . 4 . Builder 2 | . . . . . 1 . . 1 . . . Tunneler 8 | 4 . . . . 1 . . 1 . 2 . Hauler 6 | . 2 . . . 3 . . 1 . . . Recycler 9 | 1 3 . . . 2 . . 1 . 2 . Mechanic 1 | . . 1 . . . . . . . . . Operator 3 | . 1 . . . 1 . . . . 1 . Watcher 6 | . 3 . . . 2 . . 1 . . . Swarmer 20 | . 3 5 . . 2 . 3 . 7 . . Grunt 29 | . 6 3 . 2 6 . 2 . 10 . . Sentry 7 | . . . . . 4 . . 1 2 . . Specialist 2 | . . . . . . . 2 . . . . Hunter 3 | . . . . . . . 1 . 1 1 . Programmer 4 | . . . . . . . . 1 . 3 . Heavy 1 | . . . . . . . 1 . . . . Best Kill Streak 7 | 5 3 3 . 2 4 . 4 3 7 5 . Combat Bots Only 7 | . 3 3 . 2 3 . 4 1 7 3 . Max Kills in Single Turn 2 | 1 1 2 . 1 1 . 2 1 2 1 . Gunslinging 1 | . . 1 . . . . . . . . . Exploded 2 | . . 1 . . . . 2 . 2 . . Melee . | . . . . . . . . . . . . Uniques/NPCs Destroyed . | . . . . . . . . . . . . Combat | -11 -10 -10 -10 -9 -8 -7 -7 -6 -6 -5 -4 -------- Run | Yrd Mat Min Exi Min Mat Fac DSF Fac Gar Fac Fac Hostile Shots Fired 488 | . 38 21 . 18 51 . 26 26 225 45 38 Missed 163 | . 9 6 . 5 14 . 6 11 78 17 17 Hits 325 | . 29 15 . 13 37 . 20 15 147 28 21 Projectile 325 | . 29 15 . 13 37 . 20 15 147 28 21 AOE 1 | . . . . . . . . . . 1 . Critical Strikes 5 | . . 1 . . 2 . . . . 2 . Actively Blocked 1 | . . . . . . . . . . 1 . Damage Taken 4155 | . 469 181 . 125 534 . 394 120 1495 551 286 Core 650 | . 118 18 . . 92 . 56 6 186 133 41 Absorbed by Shields 267 | . . 70 . 46 76 . . . 75 . . Redirected to Shielding 79 | . . . . . 18 . . . . 42 19 Regen/Repaired (Parts) 73 | . . . . . . . . . . 73 . Core Remaining (%) 80 | 100 . . . 45 83 . 92 . 77 86 . Volleys Fired 234 | 18 54 21 . 10 45 . 13 8 44 20 1 Largest 3 | 2 2 2 . 2 3 . 3 3 3 3 1 Hottest 205 | 60 46 53 . 83 145 . 205 205 205 192 98 Shots Fired 517 | 36 108 45 1 21 120 . 35 22 89 39 1 Gun 317 | 36 108 43 1 17 68 . 18 7 19 . . Cannon 178 | . . . . 4 49 . 15 15 55 39 1 Launcher 22 | . . 2 . . 3 . 2 . 15 . . Special . | . . . . . . . . . . . . Kinetic 349 | 34 108 43 1 17 68 . 25 7 19 27 . Thermal 144 | . . . . 4 49 . 8 15 55 12 1 Explosive 22 | . . 2 . . 3 . 2 . 15 . . Electromagnetic 2 | 2 . . . . . . . . . . . Robot Hit Streak 28 | 9 11 3 . 3 24 . 8 14 28 6 . Robot Miss Streak 7 | 2 2 6 4 7 6 . 2 1 7 4 . Penetration Max 1 | . . . . . . . . . . 1 . Secondary Targets 7 | . 2 3 . 1 1 . . . . . . Max Gunslinging Chain 1 | . 1 1 . 1 1 . . . . . . Shots Hit Robots 376 | 25 75 30 . 14 68 . 21 24 87 28 4 Core Hits 179 | 8 33 16 . 7 38 . 13 9 43 11 1 Critical Kills 5 | . 1 . . 1 . . . . 3 . . Critical Parts Destroyed . | . . . . . . . . . . . . Critical Strikes 13 | . 1 . . 1 1 . . . 4 6 . Meltdown 3 | . . . . . . . . . 3 . . Destroy 2 | . 1 . . 1 . . . . . . . Blast 6 | . . . . . . . . . . 6 . Sever 2 | . . . . . 1 . . . 1 . . Melee Attacks 125 | . . . . . 11 . 4 11 59 29 11 Impact . | . . . . . . . . . . . . Slashing 125 | . . . . . 11 . 4 11 59 29 11 Piercing . | . . . . . . . . . . . . Sneak Attacks 14 | . . . . . 2 . . 3 . 8 1 Combat Hostiles . | . . . . . . . . . . . . Follow-up Attacks . | . . . . . . . . . . . . Damage Inflicted 11999 | 272 959 489 . 215 1707 . 730 916 4893 1596 222 Guns 2853 | 272 920 366 . 163 663 . 177 107 185 . . Cannons 3280 | . . . . 52 610 . 349 460 1114 695 . Explosions 1490 | . 39 100 . . 266 . 204 . 881 . . Melee 4345 | . . . . . 160 . . 349 2713 901 222 Ramming 31 | . . 23 . . 8 . . . . . . Kinetic 3544 | 248 920 366 . 163 663 . 335 107 185 557 . Thermal 2604 | . 39 . . 52 610 . 191 460 1114 138 . Explosive 1451 | . . 100 . . 266 . 204 . 881 . . Electromagnetic 24 | 24 . . . . . . . . . . . Impact . | . . . . . . . . . . . . Slashing 4345 | . . . . . 160 . . 349 2713 901 222 Piercing . | . . . . . . . . . . . . Highest Corruption 2 | . 1 1 1 1 . . . . 1 2 . Average Corruption 1 | . 1 1 1 1 . . . . 1 1 . Corruption Purged . | . . . . . . . . . . . . Corruption Blocked . | . . . . . . . . . . . . Effects 43 | . 10 18 6 6 . . . . . 3 . Message Errors 9 | . 2 1 2 3 . . . . . 1 . Matter Fused 9 | . 2 3 1 1 . . . . . 2 . Heat Flow Errors 5 | . 2 1 1 1 . . . . . . . Energy Discharges 6 | . 2 3 1 . . . . . . . . Parts Fused 1 | . . 1 . . . . . . . . . Data Loss (minor) 5 | . 1 4 . . . . . . . . . Data Loss (major) 2 | . . 2 . . . . . . . . . Misfires 5 | . . 3 1 1 . . . . . . . Alerts 1 | . 1 . . . . . . . . . . Overload Shots . | . . . . . . . . . . . . Overflow Damage 465 | . . . . . 45 . . . 107 301 12 Projectiles 45 | . . . . . . . . . 7 38 . Explosions 41 | . . . . . . . . . 41 . . Melee 379 | . . . . . 45 . . . 59 263 12 Knockbacks 6 | . . . . . . . 1 . . 5 . Impact . | . . . . . . . . . . . . Kinetic 5 | . . . . . . . 1 . . 4 . Secondary 1 | . . . . . . . . . . 1 . Self-Inflicted Damage 232 | . 101 37 . . 90 . . . 4 . . Shots 4 | . 1 1 . . 1 . . . 1 . . Rammed 5 | . . 5 . . . . . . . . . Targets Rammed 6 | . . 5 . . 1 . . . . . . Kicked 1 | . . . . . 1 . . . . . . Crushed . | . . . . . . . . . . . . Highest Temperature 426 | 20 185 173 211 153 334 . 63 426 426 412 74 Average Temperature 91 | 15 39 44 114 57 89 . 24 150 108 114 26 Received Heat Transfer 953 | . 177 77 . 62 216 . 18 18 349 9 27 Effects 4 | . . . . . 1 . . . 2 1 . Energy Bleed 2 | . . . . . 1 . . . . 1 . Interference 2 | . . . . . . . . . 2 . . Siege Activations . | . . . . . . . . . . . . Martial Activations . | . . . . . . . . . . . . Shielding Activations . | . . . . . . . . . . . . Robots Disrupted . | . . . . . . . . . . . . Combat Hostiles . | . . . . . . . . . . . . Robots Corrupted . | . . . . . . . . . . . . Combat Hostiles . | . . . . . . . . . . . . Parts Fried . | . . . . . . . . . . . . Impact Corruptions . | . . . . . . . . . . . . Robots Melted 5 | . . . . . . . . 1 4 . . Combat Hostiles 5 | . . . . . . . . 1 4 . . Parts Melted 11 | . . . . . 2 . . 1 8 . . Heat Transferred 4308 | . 100 . . 111 1147 . 300 700 1750 200 . Parts Sabotaged . | . . . . . . . . . . . . Parts Stolen . | . . . . . . . . . . . . Parts Stripped . | . . . . . . . . . . . . Power Chain Reactions . | . . . . . . . . . . . . Alert | -11 -10 -10 -10 -9 -8 -7 -7 -6 -6 -5 -4 ------- Run | Yrd Mat Min Exi Min Mat Fac DSF Fac Gar Fac Fac Maximum Alert Level 3 | . . . . . 1 . 1 . 3 2 . Low Security (%) 71 | 100 100 100 . 100 56 100 93 100 12 . 100 Level 1 16 | . . . . . 43 . 6 . 19 63 . Level 2 6 | . . . . . . . . . 29 36 . Level 3 5 | . . . . . . . . . 37 . . Level 4 . | . . . . . . . . . . . . Level 5 . | . . . . . . . . . . . . High Security . | . . . . . . . . . . . . Max Security . | . . . . . . . . . . . . Sterilizations 1 | . . . . . . . 1 . . . . Peak Influence 953 | 10 135 98 . 49 328 91 262 137 953 503 181 Initial 499 | . . 15 . . . 91 46 137 . 499 181 Average 156 | 2 49 30 . 4 153 80 100 58 549 352 154 Influence Increases 3254 | 25 373 283 . 89 711 5 226 101 1013 356 72 Destroy 0b10 Robot/C 1440 | . 180 220 . 60 280 . 180 40 400 80 . Destroy 0b10 Robot/NC 230 | 25 45 5 . . 50 . . 30 30 45 . Destroy Leader 294 | . 50 40 . 10 80 . 30 24 30 30 . Allied During Kill 35 | . . 9 . 4 22 . . . . . . Successful Hack 60 | . 20 . . . 13 5 . . . 22 . Disable Machine 180 | . 15 . . . 90 . . . 45 15 15 Anti-Garrison Action 300 | . . . . . . . . . 300 . . Destroy Structure 340 | . 33 9 . . 101 . 16 7 88 74 12 Partial Spotted 30 | . . . . . 15 . . . 15 . . Lose Combat Pursuer 345 | . 30 . . 15 60 . . . 105 90 45 Influence Decreases 3111 | 25 334 305 17 89 510 140 30 363 60 938 300 Entered New Map 940 | . . 24 17 . . 110 20 125 . 454 190 Time Decay 1796 | 25 334 281 . 79 450 30 . 213 . 294 90 Lost Part 140 | . . . . 10 20 . 10 . 60 20 20 Lost Ally 80 | . . . . . 40 . . 20 . 20 . Purge Threat 155 | . . . . . . . . 5 . 150 . Squads Dispatched 8 | . 1 1 . . 2 . 1 1 . 2 . Investigation . | . . . . . . . . . . . . Extermination 2 | . . . . . . . . . . 2 . Reinforcement 5 | . 1 . . . 2 . 1 1 . . . Assault 1 | . . 1 . . . . . . . . . Garrison . | . . . . . . . . . . . . Intercept . | . . . . . . . . . . . . Searches Triggered . | . . . . . . . . . . . . Construction Impeded . | . . . . . . . . . . . . Haulers Reinforced 1 | . . . . . . . . 1 . . . Active Scanning Responses . | . . . . . . . . . . . . Cargo Convoy Interrupts . | . . . . . . . . . . . . Stealth | -11 -10 -10 -10 -9 -8 -7 -7 -6 -6 -5 -4 --------- Run | Yrd Mat Min Exi Min Mat Fac DSF Fac Gar Fac Fac Distress Signals 7 | . 2 . . . 3 . . . . 2 . Communications Jammed . | . . . . . . . . . . . . Distress Signals . | . . . . . . . . . . . . Times Spotted 116 | . 19 13 . 4 25 . 9 5 22 12 7 Peak Tracking Total 8 | . 6 3 . 3 6 . 3 2 6 8 7 Tactical Retreats 11 | . 2 . . 1 2 . . . 2 3 1 Traps | -11 -10 -10 -10 -9 -8 -7 -7 -6 -6 -5 -4 ------- Run | Yrd Mat Min Exi Min Mat Fac DSF Fac Gar Fac Fac Traps Triggered 8 | . 1 . . . . . 2 . 5 . . Indirectly . | . . . . . . . . . . . . Trap Hack Attempts . | . . . . . . . . . . . . Triggered . | . . . . . . . . . . . . Disarmed . | . . . . . . . . . . . . Reprogrammed . | . . . . . . . . . . . . Reused . | . . . . . . . . . . . . Traps Extracted . | . . . . . . . . . . . . Installed . | . . . . . . . . . . . . Triggered . | . . . . . . . . . . . . Machines | -11 -10 -10 -10 -9 -8 -7 -7 -6 -6 -5 -4 ---------- Run | Yrd Mat Min Exi Min Mat Fac DSF Fac Gar Fac Fac Machines Disabled 16 | . 1 . . . 6 . . . 7 1 1 Max in Single Turn 4 | . 1 . . . 4 . . . 1 1 1 Garrison Relay 4 | . . . . . . . . . 4 . . Machines Repaired . | . . . . . . . . . . . . Machines Dismantled . | . . . . . . . . . . . . Machines Sabotaged . | . . . . . . . . . . . . Overloaded Fab Kills . | . . . . . . . . . . . . Hacking | -11 -10 -10 -10 -9 -8 -7 -7 -6 -6 -5 -4 --------- Run | Yrd Mat Min Exi Min Mat Fac DSF Fac Gar Fac Fac Machines Accessed 33 | . 5 1 2 . 5 1 . 8 1 9 1 Terminals 18 | . 4 1 . . 3 1 . 4 1 4 . Fabricators . | . . . . . . . . . . . . Repair Stations 1 | . . . . . . . . . . 1 . Recycling Units 7 | . 1 . . . 2 . . . . 4 . Scanalyzers 3 | . . . . . . . . 2 . . 1 Garrison Access 2 | . . . . . . . . 2 . . . Total Hacks 95 | . 13 2 24 . 12 1 . 19 2 17 5 Successful 58 | . 5 . 24 . 4 1 . 9 1 10 4 Failed 36 | . 8 2 . . 8 . . 10 1 7 . Catastrophic 7 | . 1 . . . 1 . . 3 . 2 . Database Lockouts 1 | . . . . . . . . . . . 1 Manual 27 | . 10 2 1 . 7 . . 2 . 5 . Terminals 36 | . 10 2 . . 7 1 . 6 2 8 . Fabricators . | . . . . . . . . . . . . Repair Stations 5 | . . . . . . . . . . 5 . Recycling Units 12 | . 3 . . . 5 . . . . 4 . Scanalyzers 13 | . . . . . . . . 8 . . 5 Garrison Access 5 | . . . . . . . . 5 . . . Terminal Hacks 36 | . 3 . 24 . 3 1 . 2 1 2 . Record 23 | . . . 23 . . . . . . . . Robot Analysis 5 | . 3 . . . 2 . . . . . . Open DSF 2 | . . . . . . 1 . 1 . . . Branch Access Points 1 | . . . . . . . . . . 1 . Emergency Access Points 1 | . . . . . . . . . 1 . . Unreport Threat 2 | . . . . . . . . 1 . 1 . Zone Layout 1 | . . . . . 1 . . . . . . Proto ID Catalog 1 | . . . 1 . . . . . . . . Fabricator Hacks . | . . . . . . . . . . . . Repair Station Hacks 3 | . . . . . . . . . . 3 . Scan Component 2 | . . . . . . . . . . 2 . Repair 1 | . . . . . . . . . . 1 . Recycling Unit Hacks 6 | . 1 . . . 1 . . . . 4 . Retrieve Components 6 | . 1 . . . 1 . . . . 4 . Scanalyzer 10 | . . . . . . . . 6 . . 4 Insert Component 1 | . . . . . . . . 1 . . . Analyze 1 | . . . . . . . . 1 . . . Retrieve Study 8 | . . . . . . . . 4 . . 4 Garrison Access Hacks 1 | . . . . . . . . 1 . . . Unlock Access 1 | . . . . . . . . 1 . . . Unauthorized Hacks 2 | . 1 . . . . . . . . 1 . Terminals 2 | . 1 . . . . . . . . 1 . Botnet 2 | . 1 . . . . . . . . 1 . Fabricators . | . . . . . . . . . . . . Repair Stations . | . . . . . . . . . . . . Recycling Units . | . . . . . . . . . . . . Scanalyzers . | . . . . . . . . . . . . Garrison Access . | . . . . . . . . . . . . Data Cores Recovered . | . . . . . . . . . . . . Used . | . . . . . . . . . . . . Hacking Detections 24 | . 5 1 . . 5 . . 8 1 4 . Full Trace Events . | . . . . . . . . . . . . Feedback Events . | . . . . . . . . . . . . Feedback Blocked . | . . . . . . . . . . . . Robot Schematics Acquired . | . . . . . . . . . . . . Robots Built . | . . . . . . . . . . . . Authchips . | . . . . . . . . . . . . Time . | . . . . . . . . . . . . Total Robot Build Rating . | . . . . . . . . . . . . Part Schematics Acquired 1 | . . . . . . . . 1 . . . Parts Built . | . . . . . . . . . . . . Authchips . | . . . . . . . . . . . . Time . | . . . . . . . . . . . . Total Part Build Rating . | . . . . . . . . . . . . Part Studies Acquired 8 | . . . . . . . . 4 . . 4 Parts Repaired 1 | . . . . . . . . . . 1 . Time 38 | . . . . . . . . . . 38 . Parts Recycled . | . . . . . . . . . . . . Recycled Matter . | . . . . . . . . . . . . Retrieved Matter . | . . . . . . . . . . . . Retrieved Components 18 | . 4 . . . 10 . . . . 4 . Parts Scanalyzed 1 | . . . . . . . . 1 . . . Part Schematics Acquired 1 | . . . . . . . . 1 . . . Parts Damaged 1 | . . . . . . . . 1 . . . Bothacking | -11 -10 -10 -10 -9 -8 -7 -7 -6 -6 -5 -4 ------------ Run | Yrd Mat Min Exi Min Mat Fac DSF Fac Gar Fac Fac Used RIF Installer . | . . . . . . . . . . . . Robots Hacked . | . . . . . . . . . . . . Non-combat . | . . . . . . . . . . . . Combat . | . . . . . . . . . . . . Robot Hacks Applied . | . . . . . . . . . . . . Relay Couplers Released 17 | . . . . . . . . . 17 . . Machine Destruction 17 | . . . . . . . . . 17 . . Fabnet Peak Effective % . | . . . . . . . . . . . . Robots Rewired 2 | . . . . . . . . 1 . 1 . Allies Hacked . | . . . . . . . . . . . . Hacks Repelled . | . . . . . . . . . . . . Allies | -11 -10 -10 -10 -9 -8 -7 -7 -6 -6 -5 -4 -------- Run | Yrd Mat Min Exi Min Mat Fac DSF Fac Gar Fac Fac Total Allies 6 | . . 1 . 3 . . . 1 . 1 . Largest Group 4 | . . 1 1 4 4 . . 1 . 1 . Highest-Rated Group 71 | . . 31 31 71 71 . . 12 . 30 . Highest-Rated Ally 31 | . . 31 31 31 31 . . 12 . 30 . Initial Warlord ECA Mod 16 | . . . . . . . . 9 9 16 15 Total Orders 2 | . . . . . 2 . . . . . . STAY 1 | . . . . . 1 . . . . . . FOLLOW 1 | . . . . . 1 . . . . . . Ally Attacks 39 | . . 11 . 4 22 . . 2 . . . Total Damage 518 | . . 168 . 64 272 . . 14 . . . Kills 6 | . . 3 . 1 2 . . . . . . Allies Corrupted . | . . . . . . . . . . . . Allies Melted . | . . . . . . . . . . . . Intel | -11 -10 -10 -10 -9 -8 -7 -7 -6 -6 -5 -4 ------- Run | Yrd Mat Min Exi Min Mat Fac DSF Fac Gar Fac Fac Active Infowar (turns) 2503 | 34 1112 116 . . . . . 401 2 658 180 Sensors 4 | . . 4 . . . . . . . . . Terrain 1241 | . . . . . . . . 401 2 658 180 Seismic 1258 | 34 1112 112 . . . . . . . . . Machine Analysis 837 | . . . . . . . . . . 657 180 ECM 2 | . . . . . . . . . . 2 . Robot Analysis Total 5 | . 3 . . . 2 . . . . . . Derelict Logs Recovered 2 | . . 2 . . . . . . . . . Drone Launches . | . . . . . . . . . . . . Drone Recoveries . | . . . . . . . . . . . . Exploration | -11 -10 -10 -10 -9 -8 -7 -7 -6 -6 -5 -4 ------------- Run | Yrd Mat Min Exi Min Mat Fac DSF Fac Gar Fac Fac Turns Passed 9606 | 168 1112 2015 668 810 1784 60 448 492 1211 658 180 Spaces Moved 4581 | 58 443 635 278 310 725 57 222 383 609 727 134 Core 3 | 3 . . . . . . . . . . . Treads 1909 | 55 443 635 278 310 188 . . . . . . Legs 450 | . . . . . 450 . . . . . . Wheels . | . . . . . . . . . . . . Hover 2219 | . . . . . 87 57 222 383 609 727 134 Flight . | . . . . . . . . . . . . Fastest Speed 34 | 50 160 240 240 240 108 45 105 96 34 35 106 Average Speed 156 | 154 196 240 240 240 198 95 105 102 89 61 109 Slowest Speed 340 | 160 240 240 240 240 340 105 105 105 102 110 112 Overloaded Moves . | . . . . . . . . . . . . Propulsion Burnouts . | . . . . . . . . . . . . Robots Hopped . | . . . . . . . . . . . . Potential Cave-ins . | . . . . . . . . . . . . Cave-ins Triggered . | . . . . . . . . . . . . Exploration Rate (%) 42 | 3 60 97 61 52 55 3 87 10 59 22 5 Regions Visited 11 Branch Regions 3 Pre-discovered Areas 2 | . . 1 1 . . . . . . . . Known Exits Taken 3 | . . . . . 1 1 . 1 . . . Unknown Exits Taken 6 | 1 1 1 1 1 . . . . . 1 . Scrap Searched 3 | . . 3 . . . . . . . . . Spaces Dug 72 | . . . . . 9 . 4 7 32 15 5 Terrain Destroyed 262 | . 30 9 . . 101 . 18 7 55 36 6 Melee 57 | . . . . . 9 . 4 7 18 14 5 Projectile 23 | . . . . . . . . . . 22 1 AOE 182 | . 30 9 . . 92 . 14 . 37 . . Terrain Rammed . | . . . . . . . . . . . . Walls Destroyed . | . . . . . . . . . . . . Machines Disabled . | . . . . . . . . . . . . Actions | -11 -10 -10 -10 -9 -8 -7 -7 -6 -6 -5 -4 --------- Run | Yrd Mat Min Exi Min Mat Fac DSF Fac Gar Fac Fac Total 6501 | 100 589 1080 285 356 993 62 413 456 1139 874 154 Wait 1145 | 12 57 405 . 28 85 . 150 11 355 42 . Move 4571 | 57 442 634 277 309 724 56 221 383 608 726 134 Hop . | . . . . . . . . . . . . Pick Up 100 | 5 20 4 4 1 33 2 8 7 4 8 4 Fast Attach 43 | 7 . 2 . . 16 1 . 4 4 8 1 Attach 24 | . . . . 1 6 2 2 1 5 5 2 Detach 7 | . . . . . 1 . . 1 2 3 . Swap 78 | 1 6 3 . 1 24 . 8 13 11 11 . Drop 109 | . 10 6 4 . 47 1 7 13 6 14 1 Fire 234 | 18 54 21 . 10 45 . 13 8 44 20 1 Melee 125 | . . . . . 11 . 4 11 59 29 11 Ram . | . . . . . . . . . . . . Kick 1 | . . . . . 1 . . . . . . Crush 5 | . . 5 . . . . . . . . . Escape Stasis 41 | . . . . . . . . . 41 . . Rewire 18 | . . . . 6 . . . 4 . 8 . Trap . | . . . . . . . . . . . . Miscellaneous . | . . . . . . . . . . . . Route ------- -11/Scrapyard -10/Materials (discovered 3 exits: [*Mat] / *Min x2) -10/Mines (discovered 4 exits: [*Mat x2] / *Exi / *Sub) -10/Exiles -9/Mines -8/Materials (discovered 2 exits: *Fac / [Sto]) -7/Factory -7/DSF -6/Factory (discovered 3 exits: *Fac / [*Low] / Gar) -6/Garrison -5/Factory (discovered 4 exits: *Fac x2 / Upp x2) -4/Factory History --------- Turn | Location | Event 64 | -11/Scrapyard | Discovered new exit (range 15) 169 | -11/Scrapyard | Entered Materials 173 | -10/Materials | Discovered new exit (range 12) 303 | -10/Materials | Build established: Mutant 526 | -10/Materials | Discovered new exit (range 15) 680 | -10/Materials | Discovered new exit (range 10) 1281 | -10/Materials | Entered Mines 1347 | -10/Mines | Assembled infested the area 2011 | -10/Mines | Discovered new exit (range 5) 2088 | -10/Mines | Learned location of Storage (-8) 2330 | -10/Mines | Met a Derelict testing a Signal Generator 2396 | -10/Mines | Core integrity fell below 50% 2511 | -10/Mines | Learned 2 Materials zone layouts 2516 | -10/Mines | Identified exit to Subcaves 2675 | -10/Mines | Discovered new exit (range 5) 2798 | -10/Mines | Discovered new exit (range 11) 3080 | -10/Mines | Found a damaged Exp. Sensor Array with a note attached 3090 | -10/Mines | Found Prototype Device 3090 | -10/Mines | Identified Exp. Sensor Array 3296 | -10/Mines | Entered Exiles 3296 | -10/Exiles | Accompanied by 1 ally 3358 | -10/Exiles | Met 8R-AWN 3399 | -10/Exiles | Met EX-HEX 3490 | -10/Exiles | Met EX-DEC 3512 | -10/Exiles | Learned location of Zion (-6) 3555 | -10/Exiles | Met EX-BIN 3588 | -10/Exiles | Aligned with FarCom system 3591 | -10/Exiles | Given EX-Vault access code 3646 | -10/Exiles | Opened EX-Vault 3663 | -10/Exiles | Found Longsword +1 3710 | -10/Exiles | Warned to stay clear of 0b10 Research branches 3935 | -10/Exiles | Discovered new exit (range 12) 3964 | -10/Exiles | Left Exiles lab with Longsword +1 3964 | -10/Exiles | Entered Mines 3964 | -9/Mines | Accompanied by 1 ally 3997 | -9/Mines | Met a Derelict bent on vengeance 4056 | -9/Mines | Discovered new exit (range 6) 4766 | -9/Mines | Assisted by bots powering up and referring to "LRC-V3" 4774 | -9/Mines | Entered Materials 4774 | -8/Materials | Accompanied by 4 allies 4774 | -8/Materials | Evolved 4 slots: Propulsion x1, Utility x2, Weapon x1 4775 | -8/Materials | Identified exit to Factory 5059 | -8/Materials | Build established: Tank 6155 | -8/Materials | Build established: Mutant 6232 | -8/Materials | Discovered new exit (range 9) 6558 | -8/Materials | Entered Factory 6558 | -7/Factory | Evolved 2 slots: Propulsion x1, Utility x1 6618 | -7/Factory | Identified exit to DSF 6618 | -7/Factory | Entered DSF 6659 | -7/DSF | Additional patrols routed to DSF 6879 | -7/DSF | Discovered new exit (range 16) 7057 | -7/DSF | Sterilization system engaged 7066 | -7/DSF | Entered Factory 7066 | -6/Factory | Evolved 2 slots: Propulsion x1, Utility x1 7271 | -6/Factory | Discovered new exit (range 15) 7544 | -6/Factory | Discovered new exit (range 16) 7558 | -6/Factory | Identified exit to Garrison 7558 | -6/Factory | Entered Garrison 7692 | -6/Garrison | Triggered checkpoint 7728 | -6/Garrison | Garrison Relay disabled 7746 | -6/Garrison | Garrison Relay disabled 7896 | -6/Garrison | Triggered checkpoint 7991 | -6/Garrison | Destroyed 7 combat bots 8064 | -6/Garrison | Triggered checkpoint 8075 | -6/Garrison | Garrison Relay disabled 8110 | -6/Garrison | Discovered new exit (range 11) 8286 | -6/Garrison | Triggered checkpoint 8348 | -6/Garrison | Lost 4 parts (2n1u1w) 8452 | -6/Garrison | Garrison Relay disabled 8452 | -6/Garrison | Triggered checkpoint 8648 | -6/Garrison | Build established: Hacker-Mutant 8769 | -6/Garrison | Entered Factory 8769 | -5/Factory | Evolved 2 slots: Utility x2 8806 | -5/Factory | Discovered new exit (range 4) 8916 | -5/Factory | Repaired Broken Aerolev Unit 9091 | -5/Factory | Identified exit to Upper Caves 9378 | -5/Factory | Discovered new exit (range 5) 9427 | -5/Factory | Entered another Factory area 9427 | -4/Factory | Evolved 2 slots: Power x1, Utility x1 9487 | -4/Factory | Central database locked down 9566 | -4/Factory | Spotted B-86 Titan 9607 | -4/Factory | Self-destructed Last Messages --------------- 09559_ >> Machine Analyzer network decryption results: 09559_ Terminal x1 09561_ Slug penetrates Wall. 09562_ U-05 Engineer builds a Wall. 09563_ ALERT: All DSF locations entering lockdown mode. 09563_ Penetrated by Slug. 09563_ Aerolev Unit destroyed. 09567_ Pressure Siphon disabled. 09567_ Recycling Unit disabled. 09567_ Sneak attack on A-15 Conveyor. 09581_ Penetrated by Slug. 09581_ Slug penetrates Wall. 09587_ >> Machine Analyzer network decryption results: 09587_ Repair Station x2 09589_ Slug penetrates Wall. 09604_ Antigrav System+ destroyed. 09605_ Destroyed Plasma Rifle. Map ----- +----------------------------------------------------+ | ?????????????????????????????????????????????????? | | ?????????????????????????????????????????????????? | | ?????????????????????????????????????????????????? | | ?????????????????????????????????????????????????? | | ???????????????????????????????????????????""??""" | | ???????????????????????????????????????????""??"R" | | ???????????????????????????????????????????"""?"?" | | ???????????????????????????????????????????"""???? | | ???????????????????????????????????????????"""???? | | ?????????????????????????????????????????????????? | | ????????????????????? ???? ??? ??????????????????? | | ???????????????????#????#+??#????????????????????? | | ????????????????#???? ? ???????????????????????? | | ?????????????????#???""" """"??#?#??????????????? | | ??????????????##?????"R """"???????????????????? | | ?????????????????#???""" """" ??????????????????? | | ?????????????#???????""" A"""" ??????#???????????? | | ????????????#??????? ?? m ? ? ??????????????????? | | ??????????????? #???"""" """"???#???????????????? | | ??????????? ??? ?#??"""" """"? ?#???#???????????? | | ???????????????? #?? """" """"????#???##?????????? | | ???????????????? ?##?"""" """"????##??#?#????????? | | ???????????? ???### ? ??? ?#??##???????????? | | ??????????? ??? ##???? ? ????#?????????????? | | ?????????? ? ? ???#####g##?#?###?#???#?????????? | | ?????????????? #?????##@#??#????##?##??????????? | | ??????????????? ??#?##### #??#########??#??????#?? | | ??????????#???#?????#??## ##??########??#???#????? | | ???????????#?#?##########s###?####?#?#???##????#?# | | ???????? s #?#?#?#??##??#?????????? | | ??????? s ##/#;;###########??##???#?#??# | | ???????? s? # ####?####???######## | | ???????????####? ??#!= ! ##?####?######?##??# | | ????????????### ??#=! #?####?###?#######?# | | ???????????? ? ?? ?#= #?##?#########?####? | | ????????????? #?? ? ####;;;########?#?#####?####?? | | ????????? ? ??# #?#/ ##?#?######?#??### | | ????????????????# ### ]!! ##?########?###### | | ????????????????# + ]Y! ####?############? | | ??????????????### # ]!! ##?#?##?########## | | ??????????? ??# ?# #?########?##?# | | ???????????? ??# + ##?######?###?# | | ????????????? ?## ?? # ###########?### | | ????????????? ###? " # ?############ | | ???????????? ??# ""###"/####### #?# | | ????????????? ??# " ###### | | ???????????????## # #" | | ?????????????##?# "" % # ## | | ??????????????#?# " %"" ### # = ## | | ????????????????? %%" ## # != ## """ | +----------------------------------------------------+ Best States ------------- Heat Dissipation 66 Energy Generation 35 Energy Capacity 525 Matter Stores 300 Matter Capacity 300 Sight Range 16 Terrain Scan Range 16 Terrain Scan Density 210 Additional Mass Support 12 Armor Coverage 375 Core Shielding 20 Utility Shielding 66 Phase Shifting 5 Evasion (%) 58 Targeting Accuracy 8 Recoil Reduction 3 Kinecelleration 30 Offensive Hacking 20 Defensive Hacking 10 Item Schematics ----------------- Hvy. Plasma Cannon | -6/Factory | Scanalyzed Robot Schematics ------------------ None Fabricated ------------ Nothing Repaired ---------- Aerolev Unit | 8% | -5/Factory | Broken Studied --------- Gravmag System | -6/Factory | Hacked Hvy. Plasma Cannon | -6/Factory | Hacked Imp. Grenade Launcher | -6/Factory | Hacked Minigun | -6/Factory | Hacked Antigrav System | -4/Factory | Hacked Cmb. Gravmag System | -4/Factory | Hacked Gyrokinetic Inverter | -4/Factory | Hacked Rnf. Antimatter Reactor | -4/Factory | Hacked Alien Tech Used ----------------- None Achievements -------------- We Love MA Challenges ------------ None Game ------ Seed ArmorOvertunedDissipator Manual? 0 Play Time 01:06:11 Cumulative 92.2 hours Start 2026.02.20 @ 12:09:53 End 2026.02.20 @ 13:16:13 Sessions 1 Manual Loads 0 Difficulty Rogue Special Mode None Game No. 120 Rogue 45 Adventurer 75 Explorer 0 Win Type - Total 4 Types 4/0/0/0/0/0/0/0/0/0 Lore% 48 Gallery% 49 Achievement% 39 Wizard Run 0 Options --------- Layout 2 ASCII 0 Keyboard 0 Movement Numpad Keybinds 0 Fullscreen 2 Font 24/Smallcaps Map View 50x44 Zoom Use 0% Tactical HUD 1 Map Filters NONE Filters NONE Steam 1 RUN: 85898b9f-d034-436c-8b84-41449bb85081